fUST/lending_fUST_20240409
["ID","MTS","AMOUNT","RATE_DAILY","PERIOD"]
[321982184,1712672880095,-386.236621,0.00029475,2]
[321982185,1712672880129,-474.88228301,0.00029587,5]
[321982186,1712672880163,-166.0,0.0003,2]
[321982188,1712672902869,2299.48974125,0.00027397,4]
[321982190,1712672939471,2299.48974125,0.00027397,4]
[321982194,1712672974651,581.78819008,0.00027397,4]
[321982213,1712673032298,-766.9249,0.0003,30]
[321982336,1712673038314,-424.90565146,0.0003,30]
[321982337,1712673038327,-817.16944854,0.0003,30]
[321982338,1712673038337,-2070.52140098,0.00030219,2]
[321982340,1712673038347,-1401.23065853,0.00030319,4]
[321982342,1712673038357,-400.0,0.0003032,2]
[321982344,1712673038367,-300.0,0.0003032,2]
[321982346,1712673038377,-22709.21765343,0.00030321,2]
[321982349,1712673038405,-1451.34617787,0.00030321,2]
[321982352,1712673038416,-166.0,0.00030411,2]
[321982356,1712673038427,-2104.0575218,0.00031273,2]
[321982360,1712673038437,-166.0,0.00031644,2]
[321982364,1712673038447,-153.0,0.00031941,2]
[321982366,1712673038457,-10000.0,0.00032,2]
[321982370,1712673038467,-536.95,0.00032,2]
[321982373,1712673038478,-153.0,0.00032383,2]
[321982375,1712673038488,-153.0,0.00032445,2]
[321982378,1712673038498,-153.0,0.00032445,2]
[321982382,1712673038507,-153.0,0.00032445,2]
[321982384,1712673038517,-153.0,0.00032445,2]
[321982387,1712673038527,-153.0,0.00032445,2]
[321982390,1712673038537,-153.0,0.00032445,2]
[321982393,1712673038547,-153.0,0.00032445,2]
[321982396,1712673038557,-153.0,0.00032445,2]
[321982399,1712673038568,-153.0,0.00032445,2]
[321982403,1712673038579,-153.0,0.00032445,2]
[321982407,1712673038588,-153.0,0.00032445,2]
[321982410,1712673038598,-153.0,0.00032445,2]
[321982413,1712673038608,-153.0,0.00032445,2]
[321982414,1712673038622,-797.21382565,0.00032771,4]
[321982416,1712673038632,-2210.94849827,0.00032771,4]
[321982418,1712673038651,-155.25749118,0.00032776,2]
[321982420,1712673038662,-153.0,0.000328,2]
[321982422,1712673038671,-4104.12800771,0.00032873,7]
[321982425,1712673038683,-4090.6079518,0.00032873,7]
[321982427,1712673038692,-1704.42867894,0.00032874,4]
[321982429,1712673038702,-184.10329178,0.00032874,4]
[321982431,1712673038711,-543.10798814,0.00032874,2]
[321982433,1712673038721,-216.67010204,0.00032874,4]
[321982435,1712673038731,-154.90705577,0.00032874,4]
[321982437,1712673038741,-154.90705577,0.00032874,4]
[321982439,1712673038751,-596.45126285,0.00032874,4]
[321982441,1712673038761,-1381.12762273,0.00032874,4]
[321982443,1712673038770,-276.31035049,0.00032874,4]
[321982445,1712673038779,-253.15719799,0.00032874,2]
[321982447,1712673038789,-5403.6620597,0.00032875,4]
[321982449,1712673038798,-226.45997956,0.00032875,2]
[321982451,1712673038807,-596.22533074,0.00032875,2]
[321982453,1712673038816,-500.0,0.00032876,5]
[321982455,1712673038825,-687.22,0.00032876,5]
[321982457,1712673038834,-412.84933697,0.00032876,5]
[321982459,1712673038844,-500.0,0.00032876,5]
[321982461,1712673038853,-500.0,0.00032876,5]
[321982463,1712673038862,-367.45061101,0.00032876,5]
[321982465,1712673038872,-500.67888828,0.00032876,5]
[321982467,1712673038881,-500.0,0.00032876,5]
[321982469,1712673038897,-500.0,0.00032876,5]
[321982471,1712673038906,-500.35650114,0.00032876,5]
[321982473,1712673038915,-500.0,0.00032876,5]
[321982475,1712673038925,-503.44939261,0.00032876,5]
[321982477,1712673038935,-500.0,0.00032876,5]
[321982479,1712673038946,-500.0,0.00032876,5]
[321982481,1712673038955,-500.0,0.00032876,5]
[321982483,1712673038964,-500.0,0.00032876,5]
[321982485,1712673038974,-516.34384226,0.00032876,5]
[321982487,1712673038985,-592.7698751,0.00032876,5]
[321982489,1712673038995,-500.0,0.00032876,5]
[321982491,1712673039005,-242.79264429,0.00032876,5]
[321982494,1712673039017,-257.20735571,0.00032876,5]
[321982496,1712673039026,-500.0,0.00032876,5]
[321982497,1712673039035,-500.0,0.00032876,5]
[321982500,1712673039045,-500.0,0.00032876,5]
[321982501,1712673039055,-500.0,0.00032876,5]
[321982504,1712673039064,-523.93,0.00032876,5]
[321982506,1712673039073,-500.0,0.00032876,5]
[321982508,1712673039083,-167.8799378,0.00032876,5]
[321982509,1712673039092,-522.65,0.00032876,5]
[321982511,1712673039101,-500.0,0.00032876,5]
[321982513,1712673039110,-1014.8,0.00032876,5]
[321982515,1712673039120,-500.0,0.00032876,5]
[321982517,1712673039129,-500.0,0.00032876,5]
[321982519,1712673039143,-500.0,0.00032876,5]
[321982521,1712673039152,-500.0,0.00032876,5]
[321982523,1712673039161,-500.0,0.00032876,5]
[321982525,1712673039171,-790.73,0.00032876,5]
[321982527,1712673039180,-606.25,0.00032876,5]
[321982529,1712673039189,-500.0,0.00032876,5]
[321982531,1712673039198,-500.0,0.00032876,5]
[321982533,1712673039208,-657.24,0.00032876,5]
[321982535,1712673039217,-501.09,0.00032876,5]
[321982537,1712673039226,-500.0,0.00032876,5]
[321982539,1712673039235,-646.97,0.00032876,5]
[321982541,1712673039244,-607.43959411,0.00032876,5]
[321982543,1712673039254,-500.0,0.00032876,5]
[321982545,1712673039263,-500.0,0.00032876,5]
[321982547,1712673039271,-3123.87,0.00032876,5]
[321982549,1712673039280,-327.47864508,0.00032876,5]
[321982551,1712673039289,-500.0,0.00032876,5]
[321982553,1712673039298,-500.0,0.00032876,5]
[321982555,1712673039307,-500.0,0.00032876,5]
[321982557,1712673039318,-500.0,0.00032876,5]
[321982559,1712673039327,-1482.52,0.00032876,5]
[321982561,1712673039336,-500.0,0.00032876,5]
[321982563,1712673039345,-500.0,0.00032876,5]
[321982566,1712673039355,-153.51497499,0.00032876,5]
[321982951,1712673042776,-10.63302571,0.00032876,5]
[321982953,1712673042786,-500.0,0.00032876,5]
[321982955,1712673042795,-500.0,0.00032876,5]
[321982957,1712673042804,-500.0,0.00032876,5]
[321982959,1712673042814,-500.0,0.00032876,5]
[321982961,1712673042823,-500.0,0.00032876,5]
[321982963,1712673042831,-500.0,0.00032876,5]
[321982965,1712673042840,-474.22912305,0.00032876,5]
[321983039,1712673043536,-25.77087695,0.00032876,5]
[321983041,1712673043545,-310.00449145,0.00032876,5]
[321983043,1712673043554,-500.0,0.00032876,5]
[321983046,1712673043564,-500.0,0.00032876,5]
[321983048,1712673043579,-500.0,0.00032876,5]
[321983050,1712673043589,-40.25102009,0.00032876,5]
[321985612,1712673316600,158.064987,0.00027397,2]
[321985613,1712673336082,220.17936775,0.00027397,2]
[321985614,1712673350069,220.17936775,0.00027397,2]
[321985618,1712673372247,210.34405138,0.00027397,2]
[321985625,1712673505221,196.96093067,0.00027342,2]
[321985628,1712673553309,5370.52522117,0.000274,2]
[321985673,1712674031113,-242.74204017,0.00024829,2]
[321985674,1712674031132,-192.98813141,0.00024829,2]
[321985675,1712674047153,-207.24041701,0.00024827,2]
[321985676,1712674047174,-518.395,0.00024827,2]
[321985677,1712674047194,-283.34484323,0.00024827,2]
[321985678,1712674047215,-181.0288212,0.00024828,2]
[321985679,1712674047235,-1042.91596156,0.00024828,2]
[321985680,1712674047256,-38.31066737,0.00024828,2]
[321985682,1712674051101,-1087.22335945,0.00024826,2]
[321985683,1712674051122,-397.41950421,0.00024828,2]
[321985684,1712674051144,-177.49784862,0.00024828,2]
[321985685,1712674052589,-8.08783207,0.00024828,2]
[321985686,1712674052612,-205.70180304,0.00024828,2]
[321985687,1712674052633,-562.79218199,0.00024828,2]
[321985688,1712674052655,-78.9054629,0.00024829,2]
[321985689,1712674052676,-662.17504105,0.00024829,2]
[321985698,1712674146110,-215.764455,0.00023617,2]
[321985699,1712674146133,-518.395,0.00023618,2]
[321985700,1712674146156,-205.70180304,0.00023618,2]
[321985701,1712674146185,-687.19966601,0.00023618,2]
[321985702,1712674146211,-1027.565981,0.00023619,2]
[321985703,1712674146234,-300.0,0.00024324,2]
[321985704,1712674146257,-300.0,0.00024324,2]
[321985705,1712674146281,-638.05192735,0.00024325,2]
[321985706,1712674146303,-263.43758151,0.00024325,2]
[321985707,1712674146325,-207.24041701,0.00024325,2]
[321985708,1712674146347,-22745.90339692,0.00024325,2]
[321985709,1712674146371,-2616.08628475,0.00024326,2]
[321985710,1712674146392,-1042.91596156,0.00024326,2]
[321985711,1712674146415,-283.34484323,0.00024326,2]
[321985712,1712674146445,-1617.16242552,0.00024326,2]
[321985713,1712674146469,-193.0126642,0.00024326,2]
[321985714,1712674146493,-524.73312661,0.00024327,2]
[321985715,1712674146516,-242.74204017,0.00024328,2]
[321985716,1712674146540,-924.88179764,0.00024329,2]
[321985717,1712674146563,-781.78611462,0.00024329,2]
[321985718,1712674146586,-211.40870572,0.00024329,2]
[321985719,1712674146609,-180.85366813,0.00024737,2]
[321985720,1712674146632,-178.0,0.00024824,2]
[321985721,1712674146656,-2121.15236818,0.00024827,2]
[321985722,1712674146686,-177.72211746,0.00024827,2]
[321985723,1712674146709,-500.0,0.00024827,2]
[321985724,1712674146732,-235.71051644,0.00024827,2]
[321985725,1712674146754,-500.0,0.00024827,2]
[321985726,1712674146778,-402.64454082,0.00024827,2]
[321985727,1712674146801,-250.41906424,0.0002483,2]
[321985728,1712674146824,-558.17873221,0.0002483,2]
[321985729,1712674146847,-271.89359431,0.0002483,2]
[321985730,1712674146869,-940.52672233,0.0002483,2]
[321985731,1712674146895,-435.73017158,0.0002483,2]
[321985732,1712674146922,-313.10904669,0.0002483,2]
[321985733,1712674146954,-30266.1586847,0.00024834,2]
[321985734,1712674146978,-1232.5402603,0.00024837,2]
[321985735,1712674147000,-923.35781127,0.00025,2]
[321985736,1712674147021,-161.26446166,0.00025,2]
[321985737,1712674147043,-407.69592082,0.00025832,2]
[321985738,1712674147064,-500.0,0.00025832,2]
[321985739,1712674147085,-432.66035727,0.00025832,2]
[321985740,1712674147105,-168.86913794,0.00025832,2]
[321985741,1712674147125,-500.0,0.00025836,2]
[321985742,1712674147146,-280.40884564,0.00025837,2]
[321985743,1712674147168,-754.60764883,0.00025837,2]
[321985744,1712674147198,-330.61774415,0.00025837,2]
[321985745,1712674147221,-301.18050424,0.00025837,2]
[321985746,1712674147245,-20249.65818063,0.00025843,2]
[321985752,1712674200819,237.14597222,0.00020378,2]
[321985825,1712674233560,-360.86438748,0.00023047,2]
[321985827,1712674233569,-154.95351395,0.00023047,2]
[321985828,1712674233579,-154.95351395,0.00023048,2]
[321985830,1712674233589,-845.96959881,0.00023049,2]
[321985832,1712674233599,-461.55898581,0.00023612,2]
[321985834,1712674233612,-1543.70235471,0.00023612,2]
[321985835,1712674233622,-185.57928704,0.00023612,2]
[321985836,1712674233632,-562.27799089,0.00023613,2]
[321985838,1712674233642,-523.19128542,0.00023613,2]
[321985839,1712674233652,-300.0,0.00023614,2]
[321985841,1712674233662,-300.0,0.00023614,2]
[321985842,1712674233672,-473.2366857,0.00023614,2]
[321985844,1712674233682,-154.95351395,0.00023614,2]
[321985846,1712674233692,-282.7345517,0.00023614,2]
[321985847,1712674233702,-2326.49632233,0.00023615,2]
[321985851,1712674233875,-2307.68639289,0.00023615,2]
[321985852,1712674233885,-1866.00896233,0.00023615,2]
[321985853,1712674233895,-2579.961404,0.00023615,2]
[321985854,1712674233905,-1220.83897511,0.00023616,2]
[321985855,1712674233916,-886.79559656,0.00023742,2]
[321985856,1712674233928,-921.60805282,0.00023743,2]
[321985857,1712674233940,-631.29847994,0.00024202,2]
[321985858,1712674233950,-924.88179764,0.00024225,2]
[321985859,1712674233960,-344.05128049,0.00024226,2]
[321985860,1712674233975,-299.07587,0.00024658,2]
[321985861,1712674233985,-638.05192735,0.00024998,2]
[321985862,1712674233995,-283.34484323,0.00024999,2]
[321985863,1712674234006,-317.06573944,0.00025,2]
[321985864,1712674234016,-620.564924,0.00025412,2]
[321985865,1712674234027,-207.24041701,0.00025616,2]
[321985866,1712674234036,-242.74204017,0.00025616,2]
[321985867,1712674234046,-2616.08628475,0.00025616,2]
[321985868,1712674234056,-193.0126642,0.00025617,2]
[321985869,1712674234065,-687.19966601,0.00025617,2]
[321985870,1712674234075,-781.78611462,0.00025617,2]
[321985871,1712674234084,-524.73312661,0.00025617,2]
[321985872,1712674234094,-215.764455,0.00025617,2]
[321985873,1712674234104,-420.0,0.00025618,2]
[321985874,1712674234113,-469.76688052,0.00025842,2]
[321985875,1712674234122,-4650.34181937,0.00025843,2]
[321985876,1712674234132,-176.987555,0.00025903,2]
[321985877,1712674234142,-420.0,0.00025976,2]
[321985878,1712674234151,-500.0,0.0002611,2]
[321985879,1712674234160,-344.05128046,0.00026219,3]
[321985880,1712674234170,-1194.408257,0.00026222,2]
[321985881,1712674234179,-500.0,0.00026384,2]
[321985882,1712674234189,-233.2921424,0.00026425,2]
[321985883,1712674234198,-500.0,0.00026658,2]
[321985884,1712674234207,-611.35604098,0.00026932,2]
[321985885,1712674234220,-154.95351395,0.00027,2]
[321985886,1712674234230,-154.98450155,0.00027171,2]
[321985887,1712674234239,-869.64772348,0.00027171,2]
[321985888,1712674234249,-331.97799919,0.00027172,2]
[321985889,1712674234259,-273.11640965,0.00027172,2]
[321985890,1712674234268,-178.2860746,0.00027172,2]
[321985891,1712674234278,-464.79224544,0.00027172,2]
[321985892,1712674234287,-783.64929147,0.00027172,2]
[321985893,1712674234297,-3144.0251039,0.00027172,2]
[321985894,1712674234307,-161.26446166,0.00027172,2]
[321985895,1712674234317,-365.93703847,0.00027172,2]
[321985896,1712674234327,-181.98081062,0.00027172,2]
[321985897,1712674234336,-1575.9243904,0.00027172,2]
[321985898,1712674234346,-763.53295475,0.00027173,2]
[321985899,1712674234355,-1255.44035029,0.00027173,2]
[321985900,1712674234365,-19048.53309342,0.00027173,2]
[321985901,1712674234374,-2254.84,0.00027174,2]
[321985902,1712674234384,-500.0,0.00027174,2]
[321985903,1712674234393,-500.0,0.00027174,2]
[321985904,1712674234403,-500.0,0.00027174,2]
[321985905,1712674234413,-500.0,0.00027174,2]
[321985906,1712674234422,-500.0,0.00027174,2]
[321985907,1712674234431,-500.0,0.00027174,2]
[321985908,1712674234441,-148.91115294,0.00027174,2]
[321986051,1712674243163,-203.53739799,0.00023046,2]
[321986053,1712674243173,-2160.89,0.00025836,2]
[321986055,1712674243182,-788.64698575,0.0002611,2]
[321986057,1712674243194,-1372.24301425,0.0002611,2]
[321986059,1712674243204,-2160.89,0.00026384,2]
[321986061,1712674243213,-2160.89,0.00026658,2]
[321986063,1712674243226,-2160.89,0.00026932,2]
[321986065,1712674243235,-155.84939343,0.00027171,2]
[321986067,1712674243244,-185.4258674,0.00027173,2]
[321986069,1712674243253,-286.65820197,0.00027173,2]
[321986071,1712674243262,-351.08884706,0.00027174,2]
[321986073,1712674243272,-500.0,0.00027174,2]
[321986075,1712674243281,-300.0,0.00027174,2]
[321986078,1712674243291,-760.43,0.00027174,2]
[321986079,1712674243300,-1000.0,0.00027174,2]
[321986081,1712674243309,-500.0,0.00027174,2]
[321986083,1712674243318,-504.18724316,0.00027174,2]
[321986085,1712674243327,-1204.75,0.00027174,2]
[321986087,1712674243337,-514.59037785,0.00027174,2]
[321986090,1712674243346,-500.0,0.00027174,2]
[321986092,1712674243355,-500.0,0.00027174,2]
[321986094,1712674243365,-564.97,0.00027174,2]
[321986096,1712674243375,-500.0,0.00027174,2]
[321986098,1712674243384,-500.0,0.00027174,2]
[321986100,1712674243393,-970.55,0.00027174,2]
[321986102,1712674243402,-500.0,0.00027174,2]
[321986104,1712674243411,-500.0,0.00027174,2]
[321986106,1712674243420,-1997.13,0.00027174,2]
[321986108,1712674243429,-156.69769212,0.00027184,2]
[321986110,1712674243438,-2160.89,0.00027206,2]
[321986112,1712674243447,-201.95690478,0.0002728,2]
[321986114,1712674243456,-508.21444698,0.00027297,2]
[321986115,1712674243466,-500.0,0.00027397,2]
[321986116,1712674243481,-500.0,0.00027397,2]
[321986117,1712674243490,-500.0,0.00027397,2]
[321986118,1712674243499,-585.74717551,0.00027397,2]
[321986119,1712674243508,-500.0,0.00027397,2]
[321986120,1712674243518,-500.0,0.00027397,2]
[321986121,1712674243527,-500.0,0.00027397,2]
[321986122,1712674243536,-500.0,0.00027397,2]
[321986123,1712674243546,-500.0,0.00027397,2]
[321986124,1712674243556,-158.161868,0.00027397,2]
[321986125,1712674243565,-157.27052097,0.000274,2]
[321986126,1712674243574,-3406.58437181,0.000274,2]
[321986127,1712674243584,-258.80300113,0.000274,2]
[321986128,1712674243593,-500.0,0.00027448,2]
[321986129,1712674243603,-248.59974576,0.00027448,2]
[321986130,1712674243612,-508.37842726,0.00027448,2]
[321986131,1712674243621,-300.0,0.00027448,2]
[321986132,1712674243632,-760.43,0.00027448,2]
[321986133,1712674243641,-500.0,0.00027448,2]
[321986134,1712674243651,-1204.75,0.00027448,2]
[321986135,1712674243660,-500.0,0.00027448,2]
[321986136,1712674243670,-500.0,0.00027448,2]
[321986137,1712674243679,-564.97,0.00027448,2]
[321986138,1712674243689,-500.0,0.00027448,2]
[321986139,1712674243699,-500.0,0.00027448,2]
[321986140,1712674243708,-970.55,0.00027448,2]
[321986141,1712674243718,-521.0,0.00027448,2]
[321986142,1712674243734,-500.0,0.00027448,2]
[321986144,1712674243744,-1997.13,0.00027448,2]
[321986146,1712674243754,-2160.89,0.0002748,2]
[321986148,1712674243764,-156.69769201,0.00027717,2]
[321986150,1712674243774,-500.0,0.00027722,2]
[321986152,1712674243783,-760.43,0.00027722,2]
[321986154,1712674243793,-500.0,0.00027722,2]
[321986155,1712674243802,-1204.75,0.00027722,2]
[321986157,1712674243811,-500.0,0.00027722,2]
[321986159,1712674243820,-564.97,0.00027722,2]
[321986161,1712674243829,-500.0,0.00027722,2]
[321986163,1712674243839,-970.55,0.00027722,2]
[321986165,1712674243850,-500.0,0.00027722,2]
[321986168,1712674243859,-1997.13,0.00027722,2]
[321986170,1712674243868,-2160.89,0.00027754,2]
[321986171,1712674243878,-587.0,0.00027793,2]
[321986173,1712674243888,-500.0,0.00027996,2]
[321986175,1712674243897,-760.43,0.00027996,2]
[321986177,1712674243907,-1204.75,0.00027996,2]
[321986180,1712674243917,-500.0,0.00027996,2]
[321986181,1712674243925,-564.97,0.00027996,2]
[321986184,1712674243937,-500.0,0.00027996,2]
[321986185,1712674243946,-970.55,0.00027996,2]
[321986187,1712674243957,-500.0,0.00027996,2]
[321986190,1712674243967,-1997.13,0.00027996,2]
[321986192,1712674243985,-9523.16257607,0.00028,2]
[321986194,1712674243994,-2160.89,0.00028028,2]
[321986196,1712674244003,-281.7045139,0.00028185,2]
[321986198,1712674244012,-344.05128046,0.00028211,4]
[321986200,1712674244022,-156.69769201,0.00028251,2]
[321986202,1712674244032,-500.0,0.0002827,2]
[321986204,1712674244042,-760.43,0.0002827,2]
[321986206,1712674244053,-1204.75,0.0002827,2]
[321986208,1712674244062,-564.97,0.0002827,2]
[321986210,1712674244070,-500.0,0.0002827,2]
[321986212,1712674244080,-970.55,0.0002827,2]
[321986214,1712674244089,-500.0,0.0002827,2]
[321986216,1712674244098,-1997.13,0.0002827,2]
[321986218,1712674244107,-2160.89,0.00028302,2]
[321986220,1712674244116,-548.95616393,0.00028544,2]
[321986222,1712674244125,-760.43,0.00028544,2]
[321986224,1712674244135,-1204.75,0.00028544,2]
[321986226,1712674244144,-564.97,0.00028544,2]
[321986228,1712674244153,-500.0,0.00028544,2]
[321986230,1712674244163,-970.55,0.00028544,2]
[321986231,1712674244172,-1997.13,0.00028544,2]
[321986233,1712674244183,-587.0,0.00028573,2]
[321986235,1712674244193,-508.21444695,0.00028667,2]
[321986237,1712674244203,-921.60805282,0.00028743,2]
[321986240,1712674244212,-156.69769201,0.00028784,2]
[321986242,1712674244225,-760.43,0.00028818,2]
[321986243,1712674244235,-1204.75,0.00028818,2]
[321986245,1712674244243,-564.97,0.00028818,2]
[321986247,1712674244252,-500.0,0.00028818,2]
[321986249,1712674244262,-970.55,0.00028818,2]
[321986251,1712674244271,-1997.13,0.00028818,2]
[321986253,1712674244281,-760.43,0.00029092,2]
[321986255,1712674244290,-1204.75,0.00029092,2]
[321986258,1712674244300,-564.97,0.00029092,2]
[321986260,1712674244310,-500.0,0.00029092,2]
[321986262,1712674244319,-970.55,0.00029092,2]
[321986264,1712674244329,-298.36412076,0.00029092,2]
[321986279,1712674244466,-1698.76587924,0.00029092,2]
[321986281,1712674244483,-156.69769201,0.00029317,2]
[321986283,1712674244493,-760.43,0.00029366,2]
[321986285,1712674244502,-1204.75,0.00029366,2]
[321986287,1712674244512,-564.97,0.00029366,2]
[321986289,1712674244521,-450.14424642,0.00029366,2]
[321986291,1712674244532,-49.85575358,0.00029366,2]
[321986293,1712674244541,-970.55,0.00029366,2]
[321986295,1712674244551,-24.63101097,0.00029366,2]
[321986303,1712674244622,-1972.49898903,0.00029366,2]
[321986306,1712674244632,-556.36923545,0.00029587,5]
[321986308,1712674244642,-760.43,0.0002964,2]
[321986310,1712674244651,-1204.75,0.0002964,2]
[321986311,1712674244661,-564.97,0.0002964,2]
[321986313,1712674244671,-500.0,0.0002964,2]
[321986315,1712674244682,-970.55,0.0002964,2]
[321986318,1712674244692,-1997.13,0.0002964,2]
[321986320,1712674244702,-156.69769201,0.0002985,2]
[321986322,1712674244712,-760.43,0.00029914,2]
[321986324,1712674244728,-1204.75,0.00029914,2]
[321986326,1712674244737,-564.97,0.00029914,2]
[321986328,1712674244746,-500.0,0.00029914,2]
[321986330,1712674244756,-338.36297061,0.00029914,2]
[321986333,1712674244779,-632.18702939,0.00029914,2]
[321986335,1712674244788,-1997.13,0.00029914,2]
[321986337,1712674244798,-154.9690062,0.0003,4]
[321986339,1712674244807,-508.21444695,0.00030037,2]
[321986341,1712674244817,-380.99053189,0.00030152,2]
[321986343,1712674244829,-53.00946811,0.00030152,2]
[321986345,1712674244839,-760.43,0.00030188,5]
[321986347,1712674244848,-1204.75,0.00030188,5]
[321986349,1712674244857,-564.97,0.00030188,5]
[321986351,1712674244866,-500.0,0.00030188,5]
[321986353,1712674244875,-970.55,0.00030188,5]
[321986355,1712674244884,-1997.13,0.00030188,5]
[321986357,1712674244893,-344.05128046,0.00030204,4]
[321986359,1712674244904,-156.69769201,0.00030384,2]
[321986361,1712674244914,-760.43,0.00030462,5]
[321986363,1712674244923,-1204.75,0.00030462,5]
[321986365,1712674244936,-564.97,0.00030462,5]
[321986367,1712674244947,-500.0,0.00030462,5]
[321986369,1712674244957,-970.55,0.00030462,5]
[321986371,1712674244966,-1997.13,0.00030462,5]
[321986373,1712674244985,-760.43,0.00030736,5]
[321986375,1712674244994,-1204.75,0.00030736,5]
[321986377,1712674245003,-564.97,0.00030736,5]
[321986379,1712674245012,-500.0,0.00030736,5]
[321986381,1712674245022,-970.55,0.00030736,5]
[321986383,1712674245032,-156.69769201,0.00030917,2]
[321986385,1712674245043,-1274.98450155,0.00031,30]
[321986387,1712674245053,-760.43,0.0003101,5]
[321986389,1712674245063,-1204.75,0.0003101,5]
[321986391,1712674245072,-564.97,0.0003101,5]
[321986393,1712674245081,-532.24035978,0.0003101,5]
[321986395,1712674245090,-970.55,0.0003101,5]
[321986397,1712674245099,-327.69750219,0.00031226,3]
[321986401,1712674245127,-2160.89,0.00028576,2]
[321986403,1712674245137,-1295.40409754,0.00030736,5]
[321986405,1712674245150,-701.72590246,0.00030736,5]
[321986407,1712674245160,-1475.78964127,0.00031226,3]
[321986410,1712674245178,-355.0,0.0002885,2]
[321986412,1712674245189,-1805.89,0.0002885,2]
[321986414,1712674245199,-25889.95062373,0.00031226,3]
[321986459,1712674245614,-306.54057466,0.00028543,7]
[321986461,1712674245624,-893.45218116,0.00029124,2]
[321986463,1712674245635,-1267.43781884,0.00029124,2]
[321986465,1712674245643,-2160.89,0.00029398,2]
[321986467,1712674245653,-2160.89,0.00029672,2]
[321986469,1712674245662,-1997.13,0.0003101,5]
[321986471,1712674245671,-47347.935194,0.00031226,3]
[321986593,1712674246682,-154.95351395,0.00027172,2]
[321986596,1712674246693,-195.3459226,0.00027971,2]
[321986598,1712674246702,-338.70056345,0.00028543,2]
[321986600,1712674246714,-134.53612225,0.00028543,2]
[321986602,1712674246731,-4643.14159978,0.00028543,2]
[321986604,1712674246739,-2127.32227797,0.00029946,2]
[321986606,1712674246752,-33.56772203,0.00029946,2]
[321986608,1712674246761,-2160.89,0.0003022,5]
[321986610,1712674246770,-118.50885158,0.00030494,5]
[321986613,1712674246781,-250.2488955,0.00030494,5]
[321989861,1712674412777,244.16692299,0.00017861,2]
[321989864,1712674432804,156.78359481,0.00017859,2]
[321989865,1712674435848,235.7545422,0.00021,2]
[321989866,1712674435913,1589.63237592,0.0002,2]
[321989871,1712674482795,177.37400249,0.00017859,2]
[321989877,1712674531548,154.98450155,0.0002,2]
[321989878,1712674546175,6271.0789774,0.00017859,2]
[321989879,1712674594303,298.31295942,0.00020522,5]
[321989880,1712674632806,3406.58437181,0.00017859,2]
[321989887,1712674734548,500.44839099,0.0002,2]
[321989894,1712674797909,175.54089,0.00021309,2]
[321989913,1712674868440,1480.711883,0.00021478,2]
[321989922,1712674920480,24900.0,0.00021472,2]
[321989923,1712674922628,702.0936422,0.00021471,2]
[321989924,1712674925774,154.95351395,0.0002147,2]
[321989925,1712674929247,524.73312661,0.0002147,2]
[321989927,1712674932766,924.88179764,0.00021469,2]
[321989929,1712674941766,5407.0114717,0.0002147,2]
[321989931,1712674950794,924.88179764,0.00021345,2]
[321989937,1712675114993,156.78359481,0.00016159,2]
[321989951,1712675165134,8486.3086933,0.00020708,2]
[321989954,1712675221954,1814.34722925,0.00025331,30]
[321989955,1712675235060,340.27254176,0.00021438,2]
[321989956,1712675241144,-154.95351395,0.0002151,2]
[321989957,1712675241168,-886.79559656,0.0002151,2]
[321989958,1712675241193,-803.70297386,0.00021511,2]
[321989959,1712675245101,-271.89359431,0.00021509,2]
[321989960,1712675245122,-186.90679485,0.0002151,2]
[321989961,1712675250093,-240.67684413,0.00021509,2]